[Event "Late-Titled-Tuesday-Blitz-January-30-2024"]
[Site "Chess.com"]
[Date "2024.01.30"]
[Round "5"]
[White "JCVanDamme10"]
[Black "shirovin"]
[Result "1-0"]
[WhiteElo "2308"]
[BlackElo "2040"]
[TimeControl "180+1"]
[EndTime "14:57:30 PST"]
[Termination "JCVanDamme10 won by checkmate"]

1. e4 {[%clk 0:03:00.9]} 1... c5 {[%clk 0:02:59.2]} 2. Nf3 {[%clk 0:03:00.9]}
2... d6 {[%clk 0:02:59.1]} 3. d4 {[%clk 0:03:01.5]} 3... cxd4 {[%clk 0:02:59.6]}
4. Nxd4 {[%clk 0:03:02.3]} 4... Nf6 {[%clk 0:03:00.1]} 5. Nc3 {[%clk 0:03:02.9]}
5... a6 {[%clk 0:03:00.8]} 6. Be2 {[%clk 0:03:02.3]} 6... e5 {[%clk 0:02:59.7]}
7. Nb3 {[%clk 0:03:02.8]} 7... Be7 {[%clk 0:02:58]} 8. O-O {[%clk 0:03:02.6]}
8... O-O {[%clk 0:02:57.8]} 9. f4 {[%clk 0:03:02.7]} 9... exf4 {[%clk
0:02:52.6]} 10. Bxf4 {[%clk 0:03:01.9]} 10... Be6 {[%clk 0:02:53.2]} 11. Nd4
{[%clk 0:02:58]} 11... Nc6 {[%clk 0:02:41.5]} 12. Kh1 {[%clk 0:02:57.6]} 12...
Ne5 {[%clk 0:02:39.9]} 13. Nf5 {[%clk 0:02:55]} 13... Bxf5 {[%clk 0:02:38.1]}
14. exf5 {[%clk 0:02:55.9]} 14... Qc7 {[%clk 0:02:27.8]} 15. Nd5 {[%clk
0:02:35.6]} 15... Nxd5 {[%clk 0:02:26.5]} 16. Qxd5 {[%clk 0:02:36.5]} 16... Bf6
{[%clk 0:02:26.3]} 17. c3 {[%clk 0:02:32.7]} 17... Rfe8 {[%clk 0:02:21.1]} 18.
Rad1 {[%clk 0:02:31.9]} 18... Rad8 {[%clk 0:02:19.8]} 19. g4 {[%clk 0:01:53.3]}
19... Qc6 {[%clk 0:02:18.9]} 20. g5 {[%clk 0:01:51.1]} 20... Qxd5+ {[%clk
0:02:14]} 21. Rxd5 {[%clk 0:01:52]} 21... Be7 {[%clk 0:02:13.8]} 22. Bxe5 {[%clk
0:01:32.7]} 22... dxe5 {[%clk 0:02:13.2]} 23. Rxe5 {[%clk 0:01:33.6]} 23... Bxg5
{[%clk 0:02:12.3]} 24. Rxe8+ {[%clk 0:01:29.4]} 24... Rxe8 {[%clk 0:02:11.8]}
25. Bf3 {[%clk 0:01:30.3]} 25... b5 {[%clk 0:01:58.4]} 26. Bb7 {[%clk
0:01:29.4]} 26... Re2 {[%clk 0:01:50.2]} 27. Bxa6 {[%clk 0:01:00.8]} 27... Rxb2
{[%clk 0:01:48.5]} 28. c4 {[%clk 0:01:00.5]} 28... bxc4 {[%clk 0:01:24.2]} 29.
Bxc4 {[%clk 0:00:59.5]} 29... h5 {[%clk 0:01:18]} 30. Re1 {[%clk 0:00:53]} 30...
Bf4 {[%clk 0:01:15.4]} 31. Re8+ {[%clk 0:00:52.4]} 31... Kh7 {[%clk 0:01:14.3]}
32. Bxf7 {[%clk 0:00:53]} 32... Rxh2+ {[%clk 0:01:11]} 33. Kg1 {[%clk
0:00:53.6]} 33... Rb2 {[%clk 0:01:05.7]} 34. Kf1 {[%clk 0:00:40.3]} 34... h4
{[%clk 0:01:04.8]} 35. a4 {[%clk 0:00:33.6]} 35... Rb1+ {[%clk 0:00:42]} 36. Kg2
{[%clk 0:00:32.4]} 36... Rb2+ {[%clk 0:00:37.9]} 37. Kf3 {[%clk 0:00:30.4]}
37... Bc7 {[%clk 0:00:34.3]} 38. Kg4 {[%clk 0:00:27.9]} 38... Rb4+ {[%clk
0:00:32.5]} 39. Kh5 {[%clk 0:00:28]} 39... g6+ {[%clk 0:00:27.5]} 40. Bxg6+
{[%clk 0:00:28.2]} 40... Kg7 {[%clk 0:00:27]} 41. Re7+ {[%clk 0:00:28.8]} 41...
Kf6 {[%clk 0:00:27.2]} 42. Rxc7 {[%clk 0:00:28.3]} 42... h3 {[%clk 0:00:25.3]}
43. Rc2 {[%clk 0:00:24.4]} 43... Rxa4 {[%clk 0:00:23.8]} 44. Rh2 {[%clk
0:00:24.5]} 44... Ra3 {[%clk 0:00:23]} 45. Kg4 {[%clk 0:00:24.7]} 45... Ra4+
{[%clk 0:00:19.5]} 46. Kxh3 {[%clk 0:00:24.6]} 46... Kg5 {[%clk 0:00:18.9]} 47.
Rg2+ {[%clk 0:00:22.7]} 47... Kf6 {[%clk 0:00:17.8]} 48. Rg4 {[%clk 0:00:22.3]}
48... Ra3+ {[%clk 0:00:16.8]} 49. Kh4 {[%clk 0:00:22.9]} 49... Ra7 {[%clk
0:00:17.4]} 50. Re4 {[%clk 0:00:22.7]} 50... Ra8 {[%clk 0:00:16.5]} 51. Kg4
{[%clk 0:00:22.9]} 51... Ra1 {[%clk 0:00:14.7]} 52. Re6+ {[%clk 0:00:22.5]}
52... Kg7 {[%clk 0:00:14.2]} 53. Re3 {[%clk 0:00:22.2]} 53... Ra4+ {[%clk
0:00:11.5]} 54. Kg5 {[%clk 0:00:22.1]} 54... Ra1 {[%clk 0:00:11.7]} 55. f6+
{[%clk 0:00:22.2]} 55... Kf8 {[%clk 0:00:10.2]} 56. Re8# {[%clk 0:00:22.6]} 1-0

[Event "Late-Titled-Tuesday-Blitz-January-30-2024"]
[Site "Chess.com"]
[Date "2024.01.30"]
[Round "5"]
[White "Ali_rastbod"]
[Black "MrTattaglia"]
[Result "0-1"]
[WhiteElo "2687"]
[BlackElo "2965"]
[TimeControl "180+1"]
[EndTime "14:57:31 PST"]
[Termination "MrTattaglia won on time"]

1. c4 {[%clk 0:03:00.9]} 1... Nf6 {[%clk 0:02:43.4]} 2. g3 {[%clk 0:03:00.5]}
2... g6 {[%clk 0:02:43.2]} 3. Bg2 {[%clk 0:03:01.2]} 3... Bg7 {[%clk 0:02:43.3]}
4. Nf3 {[%clk 0:02:58.5]} 4... O-O {[%clk 0:02:30.7]} 5. O-O {[%clk 0:02:58.6]}
5... e6 {[%clk 0:02:30.5]} 6. d4 {[%clk 0:02:54.9]} 6... d5 {[%clk 0:02:29.9]}
7. Qc2 {[%clk 0:02:52.9]} 7... c6 {[%clk 0:02:28.7]} 8. Nbd2 {[%clk 0:02:52.5]}
8... Nbd7 {[%clk 0:02:27.2]} 9. e4 {[%clk 0:02:52]} 9... Nxe4 {[%clk 0:02:26.7]}
10. Nxe4 {[%clk 0:02:52.9]} 10... dxe4 {[%clk 0:02:27.4]} 11. Qxe4 {[%clk
0:02:53.8]} 11... Qb6 {[%clk 0:02:24.9]} 12. b3 {[%clk 0:02:48.8]} 12... a5
{[%clk 0:02:15.3]} 13. Qh4 {[%clk 0:02:43.1]} 13... e5 {[%clk 0:02:09.8]} 14.
Ng5 {[%clk 0:02:06.8]} 14... h6 {[%clk 0:02:06.6]} 15. Ne4 {[%clk 0:02:04.2]}
15... Qd8 {[%clk 0:02:07.1]} 16. Qxd8 {[%clk 0:02:02.2]} 16... Rxd8 {[%clk
0:02:08]} 17. dxe5 {[%clk 0:01:40.7]} 17... Nxe5 {[%clk 0:02:07.3]} 18. Bf4
{[%clk 0:01:28]} 18... Nd3 {[%clk 0:02:00]} 19. Bc7 {[%clk 0:01:24.3]} 19... Rd7
{[%clk 0:01:55.8]} 20. Rad1 {[%clk 0:01:24.4]} 20... Rxc7 {[%clk 0:01:47.3]} 21.
Rxd3 {[%clk 0:01:23.5]} 21... Bf5 {[%clk 0:01:47.8]} 22. Rd2 {[%clk 0:01:20.6]}
22... Re8 {[%clk 0:01:37.9]} 23. Nd6 {[%clk 0:01:19.3]} 23... Rd8 {[%clk
0:01:38]} 24. c5 {[%clk 0:01:14.6]} 24... Bf8 {[%clk 0:01:34]} 25. Rfd1 {[%clk
0:01:12.8]} 25... Rcd7 {[%clk 0:01:31.1]} 26. a3 {[%clk 0:01:05.5]} 26... Be6
{[%clk 0:01:26]} 27. b4 {[%clk 0:01:04.9]} 27... axb4 {[%clk 0:01:25.1]} 28.
axb4 {[%clk 0:01:05.8]} 28... Bxd6 {[%clk 0:01:25.3]} 29. Rxd6 {[%clk
0:00:55.9]} 29... Rxd6 {[%clk 0:01:25.1]} 30. cxd6 {[%clk 0:00:55.7]} 30... Bc4
{[%clk 0:01:05.1]} 31. f4 {[%clk 0:00:53.6]} 31... Kf8 {[%clk 0:01:03.9]} 32.
Kf2 {[%clk 0:00:53.8]} 32... Ra8 {[%clk 0:01:01.5]} 33. Ke3 {[%clk 0:00:51.8]}
33... Ke8 {[%clk 0:01:01.3]} 34. Kd4 {[%clk 0:00:51.1]} 34... Be6 {[%clk
0:01:00.6]} 35. Kc5 {[%clk 0:00:39.2]} 35... Ra2 {[%clk 0:00:58.7]} 36. Bh1
{[%clk 0:00:37.2]} 36... Kd7 {[%clk 0:00:58.2]} 37. Kb6 {[%clk 0:00:32.9]} 37...
Rb2 {[%clk 0:00:57.9]} 38. Rd4 {[%clk 0:00:32.7]} 38... Rxh2 {[%clk 0:00:33.2]}
39. Bf3 {[%clk 0:00:30.7]} 39... Kc8 {[%clk 0:00:27]} 40. g4 {[%clk 0:00:22.3]}
40... Rb2 {[%clk 0:00:19.7]} 41. Bd1 {[%clk 0:00:17.8]} 41... Kd7 {[%clk
0:00:16.1]} 42. Bf3 {[%clk 0:00:15.7]} 42... Bd5 {[%clk 0:00:12.9]} 43. Bxd5
{[%clk 0:00:15.2]} 43... cxd5 {[%clk 0:00:13.4]} 44. Kc5 {[%clk 0:00:13.8]}
44... Rg2 {[%clk 0:00:11.4]} 45. Kxd5 {[%clk 0:00:12.3]} 45... Rxg4 {[%clk
0:00:11.4]} 46. Re4 {[%clk 0:00:12.9]} 46... Kd8 {[%clk 0:00:10.6]} 47. Ke5
{[%clk 0:00:10.4]} 47... h5 {[%clk 0:00:08.7]} 48. Kf6 {[%clk 0:00:09.6]} 48...
g5 {[%clk 0:00:09.1]} 49. Re5 {[%clk 0:00:06]} 49... Rxf4+ {[%clk 0:00:08.6]}
50. Kxg5 {[%clk 0:00:03.6]} 50... Rxb4 {[%clk 0:00:09.1]} 0-1

[Event "Late-Titled-Tuesday-Blitz-January-30-2024"]
[Site "Chess.com"]
[Date "2024.01.30"]
[Round "5"]
[White "Practical-Play"]
[Black "Mahan_83"]
[Result "1-0"]
[WhiteElo "2623"]
[BlackElo "2759"]
[TimeControl "180+1"]
[EndTime "14:57:31 PST"]
[Termination "Practical-Play won on time"]

1. e4 {[%clk 0:03:00.9]} 1... e5 {[%clk 0:02:59.7]} 2. Nf3 {[%clk 0:03:00.4]}
2... Nf6 {[%clk 0:03:00]} 3. Nxe5 {[%clk 0:02:58.7]} 3... d6 {[%clk 0:03:00.2]}
4. Nf3 {[%clk 0:02:58.6]} 4... Nxe4 {[%clk 0:03:00.3]} 5. Nc3 {[%clk 0:02:59.1]}
5... Nxc3 {[%clk 0:02:54.7]} 6. dxc3 {[%clk 0:03:00]} 6... Be7 {[%clk
0:02:54.1]} 7. Bd3 {[%clk 0:02:59.5]} 7... O-O {[%clk 0:02:53.4]} 8. Be3 {[%clk
0:02:57.2]} 8... d5 {[%clk 0:02:49.6]} 9. Qe2 {[%clk 0:02:55.2]} 9... Nc6 {[%clk
0:02:47.7]} 10. O-O-O {[%clk 0:02:54.5]} 10... Bf6 {[%clk 0:02:43.2]} 11. h4
{[%clk 0:02:50.7]} 11... h6 {[%clk 0:02:38.2]} 12. Qd2 {[%clk 0:02:45.6]} 12...
h5 {[%clk 0:02:15.4]} 13. Ng5 {[%clk 0:02:29.3]} 13... g6 {[%clk 0:02:11.7]} 14.
f3 {[%clk 0:02:24.2]} 14... Ne5 {[%clk 0:01:55.1]} 15. Be2 {[%clk 0:02:20.4]}
15... Nc4 {[%clk 0:01:53.8]} 16. Bxc4 {[%clk 0:02:13.9]} 16... dxc4 {[%clk
0:01:54.7]} 17. Qf2 {[%clk 0:01:57]} 17... Qe7 {[%clk 0:01:36.6]} 18. Bc5 {[%clk
0:01:53.8]} 18... Bxg5+ {[%clk 0:01:36.4]} 19. hxg5 {[%clk 0:01:53.6]} 19...
Qxg5+ {[%clk 0:01:36.6]} 20. f4 {[%clk 0:01:53.7]} 20... Qf6 {[%clk 0:01:28.6]}
21. Bxf8 {[%clk 0:01:36.8]} 21... Kxf8 {[%clk 0:01:29.5]} 22. Qc5+ {[%clk
0:01:34.6]} 22... Kg7 {[%clk 0:01:29.4]} 23. Qxc7 {[%clk 0:01:29]} 23... Bg4
{[%clk 0:01:29.1]} 24. Rd4 {[%clk 0:01:27.1]} 24... Re8 {[%clk 0:01:24.5]} 25.
b3 {[%clk 0:01:10.1]} 25... b5 {[%clk 0:01:20.3]} 26. Qxa7 {[%clk 0:01:04.1]}
26... Re2 {[%clk 0:01:13]} 27. Rd2 {[%clk 0:00:39.8]} 27... Qxc3 {[%clk
0:01:05.5]} 28. Qd4+ {[%clk 0:00:38.5]} 28... Qxd4 {[%clk 0:01:05.6]} 29. Rxd4
{[%clk 0:00:39.4]} 29... c3 {[%clk 0:01:06.1]} 30. a4 {[%clk 0:00:20]} 30... Bf5
{[%clk 0:01:05.8]} 31. axb5 {[%clk 0:00:19]} 31... Rxc2+ {[%clk 0:01:06.2]} 32.
Kd1 {[%clk 0:00:18.6]} 32... Ra2 {[%clk 0:00:48.9]} 33. b6 {[%clk 0:00:14.8]}
33... Ra1+ {[%clk 0:00:38.7]} 34. Ke2 {[%clk 0:00:14.2]} 34... Ra2+ {[%clk
0:00:16]} 35. Ke3 {[%clk 0:00:12.3]} 35... Ra8 {[%clk 0:00:13.4]} 36. Rc1 {[%clk
0:00:09.8]} 36... c2 {[%clk 0:00:12.9]} 37. Kd2 {[%clk 0:00:07.6]} 37... Rb8
{[%clk 0:00:11.8]} 38. Rb4 {[%clk 0:00:06.9]} 38... Kf6 {[%clk 0:00:12]} 39.
Rxc2 {[%clk 0:00:06.8]} 39... Bxc2 {[%clk 0:00:12]} 40. Kxc2 {[%clk 0:00:07.7]}
40... Ke6 {[%clk 0:00:12.4]} 41. b7 {[%clk 0:00:07.6]} 41... Kd6 {[%clk
0:00:12.6]} 42. Kc3 {[%clk 0:00:08.3]} 42... Kc7 {[%clk 0:00:12.7]} 43. Kd4
{[%clk 0:00:08.5]} 43... Rxb7 {[%clk 0:00:11.9]} 44. Rxb7+ {[%clk 0:00:08.3]}
44... Kxb7 {[%clk 0:00:12.8]} 45. Ke5 {[%clk 0:00:08.9]} 45... h4 {[%clk
0:00:04.1]} 46. Kf6 {[%clk 0:00:08.8]} 46... Kc6 {[%clk 0:00:04.6]} 47. Kxf7
{[%clk 0:00:08.9]} 47... h3 {[%clk 0:00:04.2]} 48. gxh3 {[%clk 0:00:08.9]} 48...
g5 {[%clk 0:00:03.9]} 49. fxg5 {[%clk 0:00:09.1]} 1-0

[Event "Late-Titled-Tuesday-Blitz-January-30-2024"]
[Site "Chess.com"]
[Date "2024.01.30"]
[Round "5"]
[White "TheNextLevelFan"]
[Black "english_player_89"]
[Result "1/2-1/2"]
[WhiteElo "2592"]
[BlackElo "2436"]
[TimeControl "180+1"]
[EndTime "14:57:31 PST"]
[Termination "Game drawn by repetition"]

1. e4 {[%clk 0:03:00.6]} 1... e5 {[%clk 0:02:59.8]} 2. Nc3 {[%clk 0:02:58.6]}
2... Nf6 {[%clk 0:02:59.6]} 3. f4 {[%clk 0:02:57.5]} 3... d5 {[%clk 0:02:58.8]}
4. fxe5 {[%clk 0:02:56.5]} 4... Nxe4 {[%clk 0:02:58.8]} 5. Nf3 {[%clk
0:02:56.4]} 5... Be7 {[%clk 0:02:58.4]} 6. Be2 {[%clk 0:02:45.5]} 6... c5 {[%clk
0:02:55.1]} 7. O-O {[%clk 0:02:43.5]} 7... Nc6 {[%clk 0:02:52.3]} 8. d3 {[%clk
0:02:42.7]} 8... Nxc3 {[%clk 0:02:51.7]} 9. bxc3 {[%clk 0:02:43.6]} 9... Be6
{[%clk 0:02:49.5]} 10. Qe1 {[%clk 0:02:41.7]} 10... h6 {[%clk 0:02:46.1]} 11.
Rb1 {[%clk 0:02:34.1]} 11... Qc7 {[%clk 0:02:44.4]} 12. Bf4 {[%clk 0:02:27.3]}
12... g5 {[%clk 0:02:38.3]} 13. Bg3 {[%clk 0:02:25.1]} 13... h5 {[%clk
0:02:36.7]} 14. h4 {[%clk 0:02:25]} 14... gxh4 {[%clk 0:02:30.4]} 15. Nxh4
{[%clk 0:02:24.7]} 15... O-O-O {[%clk 0:02:21]} 16. Nf5 {[%clk 0:02:24.5]} 16...
h4 {[%clk 0:02:13.7]} 17. Bh2 {[%clk 0:02:20.1]} 17... h3 {[%clk 0:02:09.2]} 18.
g4 {[%clk 0:02:09.3]} 18... Bg5 {[%clk 0:01:48.1]} 19. Qf2 {[%clk 0:02:00.1]}
19... d4 {[%clk 0:01:46.6]} 20. c4 {[%clk 0:01:58.1]} 20... Kb8 {[%clk
0:01:18.6]} 21. Kh1 {[%clk 0:01:56.7]} 21... Ka8 {[%clk 0:01:10.3]} 22. Bf3
{[%clk 0:01:54.8]} 22... Bxf5 {[%clk 0:01:02.5]} 23. gxf5 {[%clk 0:01:54.4]}
23... Be3 {[%clk 0:00:58.6]} 24. Qe2 {[%clk 0:01:53.6]} 24... Rb8 {[%clk
0:00:48.8]} 25. Rb5 {[%clk 0:01:53.6]} 25... Nxe5 {[%clk 0:00:47.1]} 26. Rfb1
{[%clk 0:01:52.2]} 26... f6 {[%clk 0:00:38.7]} 27. Rxb7 {[%clk 0:01:10.2]} 27...
Rxb7 {[%clk 0:00:38.6]} 28. Rxb7 {[%clk 0:01:10.9]} 28... Qxb7 {[%clk
0:00:38.6]} 29. Bxb7+ {[%clk 0:01:10.9]} 29... Kxb7 {[%clk 0:00:39.5]} 30. Bxe5
{[%clk 0:01:10.5]} 30... fxe5 {[%clk 0:00:40.1]} 31. Qf3+ {[%clk 0:01:07.6]}
31... Kb6 {[%clk 0:00:34.8]} 32. f6 {[%clk 0:01:07.2]} 32... Bf4 {[%clk
0:00:27.6]} 33. f7 {[%clk 0:01:03.3]} 33... Kc7 {[%clk 0:00:14.5]} 34. Qd5
{[%clk 0:01:03]} 34... Rb8 {[%clk 0:00:13.1]} 35. Qxc5+ {[%clk 0:00:45.3]} 35...
Kd7 {[%clk 0:00:13.3]} 36. Kg1 {[%clk 0:00:42.2]} 36... Rb1+ {[%clk 0:00:09]}
37. Kf2 {[%clk 0:00:42.2]} 37... h2 {[%clk 0:00:06.4]} 38. f8=Q {[%clk
0:00:33.2]} 38... Be3+ {[%clk 0:00:06.8]} 39. Ke2 {[%clk 0:00:29.3]} 39... Re1+
{[%clk 0:00:06.2]} 40. Kxe1 {[%clk 0:00:29.4]} 40... h1=Q+ {[%clk 0:00:07.1]}
41. Qf1 {[%clk 0:00:28.7]} 41... Qh4+ {[%clk 0:00:03.9]} 42. Kd1 {[%clk
0:00:27.1]} 42... Qh5+ {[%clk 0:00:04.2]} 43. Ke1 {[%clk 0:00:17.1]} 43... Qh4+
{[%clk 0:00:04.4]} 44. Ke2 {[%clk 0:00:16.1]} 44... Qh5+ {[%clk 0:00:04.7]} 45.
Qf3 {[%clk 0:00:13.9]} 45... Qh2+ {[%clk 0:00:03.4]} 46. Kf1 {[%clk 0:00:13.9]}
46... Qg1+ {[%clk 0:00:03.7]} 47. Ke2 {[%clk 0:00:13.3]} 47... Qh2+ {[%clk
0:00:04.1]} 48. Ke1 {[%clk 0:00:11]} 48... Qg1+ {[%clk 0:00:04]} 49. Qf1 {[%clk
0:00:10.1]} 49... Qg3+ {[%clk 0:00:04.5]} 50. Kd1 {[%clk 0:00:09.8]} 50... Qg4+
{[%clk 0:00:04.5]} 51. Qe2 {[%clk 0:00:09.5]} 51... Qg1+ {[%clk 0:00:04.9]} 52.
Qe1 {[%clk 0:00:09.9]} 52... Qg4+ {[%clk 0:00:05.5]} 53. Qe2 {[%clk 0:00:10.3]}
53... Qg1+ {[%clk 0:00:06.1]} 54. Qe1 {[%clk 0:00:10.7]} 54... Qg4+ {[%clk
0:00:06.7]} 55. Qe2 {[%clk 0:00:10.9]} 1/2-1/2

[Event "Late-Titled-Tuesday-Blitz-January-30-2024"]
[Site "Chess.com"]
[Date "2024.01.30"]
[Round "5"]
[White "TheMagician"]
[Black "OneTrickPony_82"]
[Result "0-1"]
[WhiteElo "2205"]
[BlackElo "2500"]
[TimeControl "180+1"]
[EndTime "14:57:33 PST"]
[Termination "OneTrickPony_82 won by checkmate"]

1. d4 {[%clk 0:03:00.9]} 1... Nf6 {[%clk 0:02:59.6]} 2. Nf3 {[%clk 0:03:00.9]}
2... d5 {[%clk 0:02:59.4]} 3. Bf4 {[%clk 0:02:59.9]} 3... c5 {[%clk 0:02:59]} 4.
e3 {[%clk 0:02:59.7]} 4... Nc6 {[%clk 0:02:57.6]} 5. Nc3 {[%clk 0:02:58.8]} 5...
a6 {[%clk 0:02:48.4]} 6. dxc5 {[%clk 0:02:54.2]} 6... e6 {[%clk 0:02:31.4]} 7.
Na4 {[%clk 0:02:44.5]} 7... Ne4 {[%clk 0:02:17.2]} 8. c3 {[%clk 0:02:39.5]} 8...
Nxc5 {[%clk 0:02:11.7]} 9. Nxc5 {[%clk 0:02:33.4]} 9... Bxc5 {[%clk 0:02:12.2]}
10. Be2 {[%clk 0:02:29.3]} 10... O-O {[%clk 0:02:11.8]} 11. O-O {[%clk
0:02:26.8]} 11... f6 {[%clk 0:02:05.3]} 12. c4 {[%clk 0:02:26.1]} 12... e5
{[%clk 0:01:55.1]} 13. Qxd5+ {[%clk 0:02:03.8]} 13... Qxd5 {[%clk 0:01:51.1]}
14. cxd5 {[%clk 0:02:03.9]} 14... exf4 {[%clk 0:01:42.2]} 15. Rac1 {[%clk
0:01:53.8]} 15... Bb6 {[%clk 0:01:24.3]} 16. dxc6 {[%clk 0:01:53.6]} 16... fxe3
{[%clk 0:01:24.7]} 17. Rfd1 {[%clk 0:01:37.4]} 17... exf2+ {[%clk 0:01:22.1]}
18. Kf1 {[%clk 0:01:37.7]} 18... bxc6 {[%clk 0:01:03.5]} 19. Rxc6 {[%clk
0:01:35.6]} 19... Rb8 {[%clk 0:01:03]} 20. Bc4+ {[%clk 0:01:15.4]} 20... Kh8
{[%clk 0:01:01.2]} 21. Be6 {[%clk 0:01:12.2]} 21... h5 {[%clk 0:00:40.6]} 22.
Rdd6 {[%clk 0:00:57.9]} 22... Be3 {[%clk 0:00:26.6]} 23. b3 {[%clk 0:00:47.7]}
23... a5 {[%clk 0:00:20.5]} 24. Rd5 {[%clk 0:00:45.5]} 24... Bxe6 {[%clk
0:00:18]} 25. Rxh5+ {[%clk 0:00:43.6]} 25... Kg8 {[%clk 0:00:18.3]} 26. Rxe6
{[%clk 0:00:43.3]} 26... Rfe8 {[%clk 0:00:17.9]} 27. Rxe8+ {[%clk 0:00:30.9]}
27... Rxe8 {[%clk 0:00:18.8]} 28. Rxa5 {[%clk 0:00:29.4]} 28... Rd8 {[%clk
0:00:15.9]} 29. Ke2 {[%clk 0:00:15.6]} 29... Bb6 {[%clk 0:00:14.1]} 30. Rb5
{[%clk 0:00:12.3]} 30... Rd1 {[%clk 0:00:14.5]} 31. Kxd1 {[%clk 0:00:11]} 31...
f1=Q+ {[%clk 0:00:14.4]} 32. Kc2 {[%clk 0:00:10]} 32... Qxb5 {[%clk 0:00:14.9]}
33. Nd2 {[%clk 0:00:06]} 33... Qc6+ {[%clk 0:00:15]} 34. Nc4 {[%clk 0:00:04.9]}
34... Qxg2+ {[%clk 0:00:15.6]} 35. Kc3 {[%clk 0:00:04.8]} 35... Bc5 {[%clk
0:00:15]} 36. a4 {[%clk 0:00:04.5]} 36... Qh3+ {[%clk 0:00:14.3]} 37. Kb2 {[%clk
0:00:04.4]} 37... Qxh2+ {[%clk 0:00:14.8]} 38. Kc3 {[%clk 0:00:04.4]} 38... Qg3+
{[%clk 0:00:15.2]} 39. Kc2 {[%clk 0:00:04.5]} 39... Bb4 {[%clk 0:00:15.5]} 40.
Nb2 {[%clk 0:00:04]} 40... Qc3+ {[%clk 0:00:15.4]} 41. Kb1 {[%clk 0:00:04.1]}
41... Qxb3 {[%clk 0:00:15.8]} 42. Kc1 {[%clk 0:00:03.1]} 42... Ba3 {[%clk
0:00:16.2]} 43. Kd2 {[%clk 0:00:03.4]} 43... Bxb2 {[%clk 0:00:15.7]} 44. a5
{[%clk 0:00:03.2]} 44... Bc3+ {[%clk 0:00:15.4]} 45. Kd3 {[%clk 0:00:03.6]}
45... Bxa5+ {[%clk 0:00:15.6]} 46. Ke4 {[%clk 0:00:04.5]} 46... Qc4+ {[%clk
0:00:15.6]} 47. Kf3 {[%clk 0:00:04.2]} 47... Qd3+ {[%clk 0:00:15.2]} 48. Kf4
{[%clk 0:00:04.3]} 48... Bd2+ {[%clk 0:00:15.3]} 49. Kg4 {[%clk 0:00:03.7]}
49... g6 {[%clk 0:00:15.6]} 50. Kh4 {[%clk 0:00:02]} 50... Qe3 {[%clk
0:00:11.5]} 51. Kg4 {[%clk 0:00:01.7]} 51... f5+ {[%clk 0:00:11.9]} 52. Kh4
{[%clk 0:00:01.5]} 52... Be1# {[%clk 0:00:12.6]} 0-1

[Event "Late-Titled-Tuesday-Blitz-January-30-2024"]
[Site "Chess.com"]
[Date "2024.01.30"]
[Round "5"]
[White "Vasily85"]
[Black "ChEsper99"]
[Result "1-0"]
[WhiteElo "2482"]
[BlackElo "2163"]
[TimeControl "180+1"]
[EndTime "14:57:33 PST"]
[Termination "Vasily85 won on time"]

1. g3 {[%clk 0:03:00.9]} 1... d5 {[%clk 0:02:48]} 2. Bg2 {[%clk 0:03:01.3]} 2...
Nf6 {[%clk 0:02:47.7]} 3. d4 {[%clk 0:02:59.5]} 3... c6 {[%clk 0:02:41.7]} 4.
Nf3 {[%clk 0:02:58]} 4... Bg4 {[%clk 0:02:41]} 5. O-O {[%clk 0:02:57.3]} 5... e6
{[%clk 0:02:40]} 6. c4 {[%clk 0:02:55.3]} 6... Nbd7 {[%clk 0:02:33.9]} 7. Qc2
{[%clk 0:02:46.5]} 7... Bd6 {[%clk 0:02:23.6]} 8. Nbd2 {[%clk 0:02:45.7]} 8...
O-O {[%clk 0:02:22.7]} 9. e4 {[%clk 0:02:45.3]} 9... dxe4 {[%clk 0:02:22.9]} 10.
Nxe4 {[%clk 0:02:46.2]} 10... Nxe4 {[%clk 0:02:23.1]} 11. Qxe4 {[%clk
0:02:46.1]} 11... Bf5 {[%clk 0:02:23.7]} 12. Qe2 {[%clk 0:02:45.4]} 12... Bg4
{[%clk 0:02:17.1]} 13. h3 {[%clk 0:02:34.1]} 13... Bh5 {[%clk 0:02:15.4]} 14. g4
{[%clk 0:01:58.2]} 14... Bg6 {[%clk 0:02:15.2]} 15. Ne5 {[%clk 0:01:58.9]} 15...
Nxe5 {[%clk 0:02:02.8]} 16. dxe5 {[%clk 0:01:59.8]} 16... Bc5 {[%clk 0:02:03.3]}
17. Rd1 {[%clk 0:01:56.7]} 17... Qb6 {[%clk 0:02:03.3]} 18. b3 {[%clk
0:01:40.3]} 18... Rad8 {[%clk 0:01:58.4]} 19. Bg5 {[%clk 0:01:32.9]} 19... Rd4
{[%clk 0:01:43.1]} 20. Be3 {[%clk 0:01:23.1]} 20... Rxd1+ {[%clk 0:01:42.3]} 21.
Rxd1 {[%clk 0:01:24]} 21... Bxe3 {[%clk 0:01:42.7]} 22. Qxe3 {[%clk 0:01:24.9]}
22... Qxe3 {[%clk 0:01:15.9]} 23. fxe3 {[%clk 0:01:25.8]} 23... f6 {[%clk
0:01:13.8]} 24. Rd7 {[%clk 0:01:08.7]} 24... Rf7 {[%clk 0:01:12.8]} 25. Rd8+
{[%clk 0:01:02.5]} 25... Rf8 {[%clk 0:01:13]} 26. Rd7 {[%clk 0:01:02.2]} 26...
Rf7 {[%clk 0:01:13]} 27. Rd6 {[%clk 0:01:02.2]} 27... Re7 {[%clk 0:01:02.5]} 28.
exf6 {[%clk 0:01:01.7]} 28... gxf6 {[%clk 0:01:00.6]} 29. c5 {[%clk 0:00:58.7]}
29... Kf7 {[%clk 0:00:44.3]} 30. Bf1 {[%clk 0:00:50.8]} 30... Be4 {[%clk
0:00:41.8]} 31. Rd8 {[%clk 0:00:48.1]} 31... Re8 {[%clk 0:00:36.7]} 32. Rd7+
{[%clk 0:00:47.2]} 32... Re7 {[%clk 0:00:37]} 33. Rd4 {[%clk 0:00:43.1]} 33...
Bb1 {[%clk 0:00:25.5]} 34. Bc4 {[%clk 0:00:40]} 34... Bg6 {[%clk 0:00:12]} 35.
Rd6 {[%clk 0:00:38.1]} 35... h5 {[%clk 0:00:12.4]} 36. Kf2 {[%clk 0:00:26.1]}
36... hxg4 {[%clk 0:00:12.6]} 37. hxg4 {[%clk 0:00:27]} 37... Be4 {[%clk
0:00:13.2]} 38. Kg3 {[%clk 0:00:20.7]} 38... Bd5 {[%clk 0:00:13.5]} 39. Bd3
{[%clk 0:00:21.2]} 39... Ke8 {[%clk 0:00:10.7]} 40. e4 {[%clk 0:00:20.4]} 40...
b6 {[%clk 0:00:05.7]} 41. cxb6 {[%clk 0:00:17.3]} 41... axb6 {[%clk 0:00:02.4]}
42. exd5 {[%clk 0:00:17.8]} 42... exd5 {[%clk 0:00:02.7]} 43. Bg6+ {[%clk
0:00:17]} 43... Kf8 {[%clk 0:00:02.2]} 44. Rxf6+ {[%clk 0:00:17.2]} 44... Kg7
{[%clk 0:00:02.4]} 45. Rxc6 {[%clk 0:00:18.1]} 45... Re3+ {[%clk 0:00:01.7]} 46.
Kf4 {[%clk 0:00:18.2]} 46... Re2 {[%clk 0:00:02]} 47. a4 {[%clk 0:00:17.2]}
47... Ra2 {[%clk 0:00:02.5]} 48. Rxb6 {[%clk 0:00:16.9]} 48... Rc2 {[%clk
0:00:02.4]} 49. Bxc2 {[%clk 0:00:16.1]} 1-0